fUSD/lending_fUSD_20260415
["ID","MTS","AMOUNT","RATE_DAILY","PERIOD"]
[420529076,1776257434498,-531.79179652,0.0001114,2]
[420529077,1776257434530,-531.79179652,0.0001114,2]
[420529078,1776257434551,-531.79179652,0.0001114,2]
[420529079,1776257434587,-531.79179652,0.0001114,2]
[420529080,1776257434603,-531.79179652,0.0001114,2]
[420529081,1776257434655,-531.79179652,0.0001114,2]
[420529082,1776257434706,-531.79179652,0.0001114,2]
[420529083,1776257434763,-531.79179652,0.0001114,2]
[420529084,1776257434818,-531.79179652,0.0001114,2]
[420529085,1776257434853,-531.79179652,0.0001114,2]
[420529086,1776257434890,-531.79179652,0.0001114,2]
[420529087,1776257434921,-531.79179652,0.0001114,2]
[420529088,1776257434951,-531.79179652,0.0001114,2]
[420529089,1776257434995,-531.79179652,0.0001114,2]
[420529090,1776257435025,-531.79179652,0.0001114,2]
[420529091,1776257435048,-531.79179652,0.0001114,2]
[420529092,1776257435067,-531.79179652,0.0001114,2]
[420529093,1776257435081,-531.79179652,0.0001114,2]
[420529094,1776257435099,-531.79179652,0.0001114,2]
[420529095,1776257435113,-531.79179652,0.0001114,2]
[420529096,1776257435133,-531.79179652,0.0001114,2]
[420529097,1776257435146,-531.79179652,0.0001114,2]
[420529098,1776257435157,-531.79179652,0.0001114,2]
[420529099,1776257435170,-531.79179652,0.0001114,2]
[420529100,1776257435185,-531.79179652,0.0001114,2]
[420529101,1776257435201,-531.79179652,0.0001114,2]
[420529102,1776257435213,-531.79179652,0.0001114,2]
[420529103,1776257435228,-531.79179652,0.0001114,2]
[420529104,1776257435240,-531.79179652,0.0001114,2]
[420529105,1776257435254,-531.79179652,0.0001114,2]
[420529106,1776257435265,-531.79179652,0.0001114,2]
[420529107,1776257435275,-531.79179652,0.0001114,2]
[420529108,1776257435287,-531.79179652,0.0001114,2]
[420529109,1776257435299,-531.79179652,0.0001114,2]
[420529110,1776257435308,-531.79179652,0.0001114,2]
[420529111,1776257435318,-531.79179652,0.0001114,2]
[420529112,1776257435329,-531.79179652,0.0001114,2]
[420529113,1776257435342,-531.79179652,0.0001114,2]
[420529114,1776257435352,-531.79179652,0.0001114,2]
[420529115,1776257435362,-524.7575135,0.0001114,2]
[420529116,1776257435373,-524.7575135,0.0001114,2]
[420529117,1776257435386,-524.7575135,0.0001114,2]
[420529118,1776257435396,-524.7575135,0.0001114,2]
[420529119,1776257435405,-524.7575135,0.0001114,2]
[420529120,1776257435415,-524.7575135,0.0001114,2]
[420529121,1776257435631,-524.7575135,0.0001114,2]
[420529122,1776257435641,-524.7575135,0.0001114,2]
[420529123,1776257435650,-524.7575135,0.0001114,2]
[420529124,1776257435660,-524.7575135,0.0001114,2]
[420529125,1776257435670,-524.7575135,0.0001114,2]
[420529126,1776257435680,-524.7575135,0.0001114,2]
[420529127,1776257435690,-524.7575135,0.0001114,2]
[420529128,1776257435699,-524.7575135,0.0001114,2]
[420529129,1776257435709,-524.7575135,0.0001114,2]
[420529130,1776257435719,-524.7575135,0.0001114,2]
[420529131,1776257435729,-524.7575135,0.0001114,2]
[420529132,1776257435739,-524.7575135,0.0001114,2]
[420529133,1776257435749,-524.7575135,0.0001114,2]
[420529134,1776257435758,-524.7575135,0.0001114,2]
[420529135,1776257435768,-524.7575135,0.0001114,2]
[420529136,1776257435778,-524.7575135,0.0001114,2]
[420529137,1776257435787,-524.7575135,0.0001114,2]
[420529138,1776257435797,-524.7575135,0.0001114,2]
[420529139,1776257435806,-524.7575135,0.0001114,2]
[420529140,1776257435816,-524.7575135,0.0001114,2]
[420529141,1776257435825,-524.7575135,0.0001114,2]
[420529142,1776257435835,-506.01617374,0.0001114,2]
[420529143,1776257435844,-506.01617374,0.0001114,2]
[420529144,1776257435853,-506.01617374,0.0001114,2]
[420529145,1776257435863,-506.01617374,0.0001114,2]
[420529146,1776257435873,-506.01617374,0.0001114,2]
[420529147,1776257435883,-506.01617374,0.0001114,2]
[420529148,1776257435892,-506.01617374,0.0001114,2]
[420529149,1776257435902,-506.01617374,0.0001114,2]
[420529150,1776257435912,-506.01617374,0.0001114,2]
[420529151,1776257435923,-506.01617374,0.0001114,2]
[420529152,1776257435933,-506.01617374,0.0001114,2]
[420529153,1776257435943,-506.01617374,0.0001114,2]
[420529154,1776257435953,-506.01617374,0.0001114,2]
[420529155,1776257435963,-506.0161737,0.0001114,2]
[420529156,1776257435976,-300.0,0.0001114,2]
[420529157,1776257435986,-250.0,0.0001114,2]
[420529158,1776257435997,-6249.35808032,0.00011141,2]
[420529159,1776257436025,-13871.33854149,0.00011141,2]
[420529194,1776257438935,-11480.84133077,0.00011141,2]
[420529202,1776257440421,-463.17396815,0.00011141,2]
[420529215,1776257446384,-155115.63288707,0.00011141,2]
[420529218,1776257446720,-776629.25381403,0.00011141,2]
[420529219,1776257446744,-4987.43232557,0.00011141,2]
[420529221,1776257446763,-578.51958327,0.00011141,2]
[420529223,1776257446774,-3359.58785835,0.00011141,2]
[420529236,1776257539731,1555.35886815,8.778e-05,2]
[420529237,1776257539770,228.16311447,8.778e-05,2]
[420529239,1776257652962,9000.0,8.778e-05,2]
[420529247,1776258232706,5139.7967583,0.000165,30]
[420529262,1776258632066,-151.0,8.778e-05,3]
[420529263,1776258632078,-151.0,9.722e-05,3]
[420529264,1776258632100,-391.37073255,0.00010111,2]
[420529265,1776258632113,-1208.62926745,0.00010111,2]
[420529266,1776258632123,-392.04,0.00010119,2]
[420529267,1776258632139,-1200.0,0.00010215,2]
[420529268,1776258632152,-778.36883595,0.00010216,2]
[420529269,1776258632183,-502.87344807,0.00010216,2]
[420529270,1776258632198,-8259.63771598,0.00010216,2]
[420529271,1776258632209,-173.49,0.00010259,2]
[420529272,1776258632226,-151.0,0.00010667,3]
[420529273,1776258632239,-7278.16260557,0.000107,2]
[420529274,1776258632249,-153.75433783,0.00010841,2]
[420529275,1776258632264,-1000.0,0.00010941,2]
[420529276,1776258632281,-123302.9644,0.00010941,2]
[420529277,1776258632291,-5303.3686,0.00010941,2]
[420529278,1776258632303,-25122.0056,0.00010941,2]
[420529279,1776258632332,-29147.4818,0.00010941,2]
[420529280,1776258632344,-5380.77185624,0.00010951,2]
[420529281,1776258632379,-150.0,0.00010959,2]
[420529282,1776258632397,-500.0,0.00010973,2]
[420529283,1776258632427,-500.0,0.00010973,2]
[420529284,1776258632441,-500.0,0.00010973,2]
[420529286,1776258632466,-150.0,0.00011,2]
[420529288,1776258632483,-200.0,0.00011034,2]
[420529289,1776258632506,-500.0,0.00011034,2]
[420529290,1776258632535,-151.0,0.00011034,2]
[420529291,1776258632562,-500.0,0.00011034,2]
[420529292,1776258632590,-151.0,0.00011034,2]
[420529293,1776258632606,-500.0,0.00011034,2]
[420529294,1776258632623,-151.0,0.00011034,2]
[420529295,1776258632638,-500.0,0.00011034,2]
[420529296,1776258632648,-151.0,0.00011034,2]
[420529297,1776258632663,-500.0,0.00011034,2]
[420529298,1776258632679,-151.0,0.00011034,2]
[420529299,1776258632692,-500.0,0.00011034,2]
[420529300,1776258632711,-151.0,0.00011034,2]
[420529301,1776258632726,-500.0,0.00011034,2]
[420529302,1776258632743,-151.0,0.00011034,2]
[420529303,1776258632757,-500.0,0.00011034,2]
[420529304,1776258632771,-151.0,0.00011034,2]
[420529305,1776258632787,-500.0,0.00011034,2]
[420529306,1776258633347,-151.0,0.00011034,2]
[420529307,1776258633377,-500.0,0.00011034,2]
[420529308,1776258633387,-151.0,0.00011034,2]
[420529309,1776258633399,-151.0,0.00011034,2]
[420529310,1776258633417,-500.0,0.00011034,2]
[420529311,1776258633435,-1380.648,0.00011038,2]
[420529312,1776258633453,-170.78734437,0.00011038,2]
[420529313,1776258633466,-173.89,0.00011038,2]
[420529314,1776258633500,-987.12883571,0.00011039,2]
[420529315,1776258633522,-500.0,0.0001104,2]
[420529316,1776258633546,-500.0,0.0001104,2]
[420529317,1776258633613,-500.0,0.0001104,2]
[420529318,1776258633662,-500.0,0.0001104,2]
[420529319,1776258633716,-500.0,0.0001104,2]
[420529320,1776258633753,-500.0,0.0001104,2]
[420529321,1776258633797,-500.0,0.0001104,2]
[420529322,1776258633830,-500.0,0.0001104,2]
[420529323,1776258633849,-500.0,0.0001104,2]
[420529324,1776258633870,-500.0,0.0001104,2]
[420529325,1776258633897,-500.0,0.0001104,2]
[420529326,1776258633930,-500.0,0.0001104,2]
[420529327,1776258633970,-500.0,0.0001104,2]
[420529328,1776258633990,-500.0,0.0001104,2]
[420529329,1776258634023,-500.0,0.0001104,2]
[420529330,1776258634040,-500.0,0.0001104,2]
[420529331,1776258634062,-500.0,0.0001104,2]
[420529332,1776258634081,-500.0,0.0001104,2]
[420529333,1776258634111,-500.0,0.0001104,2]
[420529334,1776258634124,-500.0,0.0001104,2]
[420529335,1776258634148,-500.0,0.0001104,2]
[420529336,1776258634161,-500.0,0.0001104,2]
[420529337,1776258634175,-500.0,0.0001104,2]
[420529338,1776258634187,-500.0,0.0001104,2]
[420529339,1776258634199,-500.0,0.0001104,2]
[420529340,1776258634210,-500.0,0.0001104,2]
[420529341,1776258634222,-500.0,0.0001104,2]
[420529342,1776258634233,-500.0,0.0001104,2]
[420529343,1776258634245,-500.0,0.0001104,2]
[420529344,1776258634258,-394.67288228,0.0001104,2]
[420529345,1776258634269,-500.0,0.0001104,2]
[420529346,1776258634280,-500.0,0.0001104,2]
[420529347,1776258634298,-500.0,0.0001104,2]
[420529348,1776258634311,-500.0,0.0001104,2]
[420529349,1776258634321,-500.0,0.0001104,2]
[420529350,1776258634333,-500.0,0.0001104,2]
[420529351,1776258634344,-500.0,0.0001104,2]
[420529352,1776258634357,-500.0,0.0001104,2]
[420529353,1776258634367,-500.0,0.0001104,2]
[420529354,1776258634379,-500.0,0.0001104,2]
[420529355,1776258634389,-500.0,0.0001104,2]
[420529356,1776258634401,-300.0,0.0001104,2]
[420529357,1776258634412,-360.58710416,0.0001104,2]
[420529358,1776258634423,-250.0,0.0001104,2]
[420529359,1776258634433,-243.99301676,0.00011051,2]
[420529360,1776258634445,-500.0,0.00011073,2]
[420529361,1776258634458,-500.0,0.00011073,2]
[420529362,1776258634470,-500.0,0.00011073,2]
[420529363,1776258634481,-2061.18712948,0.00011099,2]
[420529364,1776258634500,-10169.8078393,0.00011099,2]
[420529365,1776258634519,-2425.68059823,0.00011099,2]
[420529366,1776258634531,-7305.72067427,0.00011099,2]
[420529367,1776258634542,-578.20924308,0.0001113,2]
[420529368,1776258634554,-1428.38747117,0.0001113,2]
[420529369,1776258634566,-500.0,0.0001113,2]
[420529370,1776258634580,-721.12765535,0.0001113,2]
[420529371,1776258634594,-200.0,0.0001113,2]
[420529372,1776258634605,-151.0,0.0001113,2]
[420529373,1776258634616,-151.0,0.0001113,2]
[420529374,1776258634629,-500.0,0.0001113,2]
[420529375,1776258634641,-743.50770149,0.0001113,2]
[420529376,1776258634652,-500.0,0.0001113,2]
[420529377,1776258634664,-500.0,0.0001113,2]
[420529378,1776258634674,-500.0,0.0001113,2]
[420529379,1776258634686,-500.0,0.0001113,2]
[420529380,1776258634696,-174.61919141,0.0001113,2]
[420529381,1776258634711,-235.75327194,0.0001113,2]
[420529382,1776258634723,-244.476143,0.0001113,2]
[420529383,1776258634734,-375.30024499,0.0001113,2]
[420529384,1776258634744,-846.25946515,0.0001114,2]
[420529385,1776258634760,-2682.73774522,0.0001114,2]
[420529386,1776258634774,-19367.4199466,0.00011141,2]
[420529387,1776258634786,-18880.7795729,0.00011141,2]
[420529388,1776258634805,-196.62876995,0.00011141,2]
[420529389,1776258634821,-151.0,0.00011141,2]
[420529390,1776258634833,-200.0,0.00011151,2]
[420529391,1776258634849,-500.0,0.00011185,2]
[420529392,1776258634865,-151.0,0.00011185,2]
[420529393,1776258634877,-480.0,0.00011237,2]
[420529394,1776258634893,-500.0,0.0001124,2]
[420529395,1776258634910,-151.0,0.0001124,2]
[420529396,1776258634923,-500.0,0.00011295,2]
[420529397,1776258634938,-151.0,0.00011295,2]
[420529398,1776258634954,-158.205,0.00011338,2]
[420529399,1776258634966,-500.0,0.0001135,2]
[420529400,1776258634981,-151.0,0.0001135,2]
[420529401,1776258634999,-1600.0,0.00011374,2]
[420529402,1776258635012,-159.0,0.000114,2]
[420529403,1776258635028,-159.0,0.000114,2]
[420529404,1776258635049,-7305.72067418,0.00011403,2]
[420529405,1776258635065,-500.0,0.00011405,2]
[420529406,1776258635079,-151.0,0.00011405,2]
[420529407,1776258635102,-164.5195609,0.00011441,2]
[420529408,1776258635115,-1758.1112595,0.00011441,2]
[420529409,1776258635131,-4023.25474949,0.00011452,2]
[420529410,1776258635159,-500.0,0.0001146,2]
[420529411,1776258635175,-352.73,0.00011466,2]
[420529412,1776258635198,-167.29784249,0.00011488,2]
[420529413,1776258635211,-150.0,0.00011488,2]
[420529414,1776258635227,-200.0,0.00011488,2]
[420529415,1776258635243,-150.0,0.00011488,2]
[420529416,1776258635255,-14656.67556694,0.00011501,2]
[420529417,1776258635267,-866.97,0.00011507,2]
[420529418,1776258635277,-500.0,0.00011515,2]
[420529419,1776258635294,-826.15323912,0.00011521,2]
[420529420,1776258635314,-173.84676088,0.00011521,2]
[420529421,1776258635331,-500.0,0.00011521,2]
[420529422,1776258635341,-633.13354212,0.0001153,2]
[420529423,1776258635358,-732.27540788,0.0001153,2]
[420529424,1776258635368,-453.28852241,0.0001153,2]
[420529426,1776258638183,-310.74299464,0.0001153,2]
[420529427,1776258638363,-601.37743295,0.0001153,2]
[420529428,1776258638386,-531.30511434,0.0001153,2]
[420529429,1776258638484,-834.10384566,0.0001153,2]
[420529430,1776258638511,-151.0,0.0001153,2]
[420529431,1776258638539,-16510.62,0.00011577,2]
[420529432,1776258638563,-151.0,0.00011578,2]
[420529433,1776258638589,-151.0,0.00011578,2]
[420529434,1776258638605,-250.632304,0.00011578,2]
[420529435,1776258638619,-201.76261651,0.00011582,2]
[420529436,1776258638632,-4002.0,0.000116,5]
[420529437,1776258638651,-593.0,0.00011609,5]
[420529438,1776258638667,-612.0,0.00011609,5]
[420529439,1776258638690,-489.0,0.00011609,5]
[420529440,1776258638707,-151.0,0.00011611,3]
[420529441,1776258638720,-500.0,0.00011621,2]
[420529442,1776258638751,-1365.40896,0.00011642,2]
[420529443,1776258638762,-1365.40895,0.00011642,2]
[420529444,1776258638792,-1365.40895,0.00011642,2]
[420529445,1776258638805,-1481.23780761,0.00011678,2]
[420529446,1776258638831,-200.0,0.00011678,2]
[420529447,1776258638842,-156.587,0.00011678,2]
[420529448,1776258638866,-771.01748645,0.00011678,2]
[420529449,1776258638877,-181.08010149,0.00011678,2]
[420529450,1776258638893,-2000.0,0.00011689,2]
[420529451,1776258638914,-5380.77185621,0.00011801,2]
[420529453,1776258638924,-255.91887835,0.00011876,2]
[420529455,1776258638948,-7305.72067418,0.00011965,2]
[420529457,1776258638964,-1013.0,0.00012,2]
[420529460,1776258638976,-159.0,0.00012,2]
[420529462,1776258638994,-159.0,0.00012,2]
[420529464,1776258639008,-92.35486468,0.00012,2]
[420529466,1776258639029,-66.64513532,0.00012,2]
[420529467,1776258639041,-1027.54890468,0.00012051,2]
[420529473,1776258641216,-2223.98503065,0.00012051,2]
[420529474,1776258641248,-2438.15312271,0.00012051,2]
[420529475,1776258641262,-8966.9885089,0.00012051,2]
[420529476,1776258641284,-1500.0,0.00012068,2]
[420529477,1776258641301,-243.99301672,0.00012193,2]
[420529478,1776258641324,-5863.16808616,0.00012214,2]
[420529479,1776258641347,-180.36328235,0.00012225,2]
[420529480,1776258641371,-500.0,0.00012225,2]
[420529481,1776258641390,-500.0,0.00012225,2]
[420529482,1776258641407,-290.95831092,0.00012225,2]
[420529483,1776258641433,-500.0,0.00012225,2]
[420529484,1776258641444,-281.62706313,0.00012225,2]
[420529485,1776258641463,-500.0,0.00012225,2]
[420529486,1776258641479,-341.5806391,0.00012225,2]
[420529487,1776258641489,-200.0,0.00012226,2]
[420529488,1776258641515,-162.38071901,0.00012226,2]
[420529489,1776258641525,-859.80605061,0.00012226,2]
[420529490,1776258641542,-187.78006525,0.00012226,2]
[420529491,1776258641559,-537.55231469,0.00012277,2]
[420529492,1776258641569,-191.4963,0.000123,2]
[420529493,1776258641590,-524.46322956,0.00012302,2]
[420529494,1776258641602,-7305.72067418,0.00012527,2]
[420529495,1776258641617,-4321.4555143,0.00012555,2]
[420529496,1776258641634,-4212.8713698,0.00012555,2]
[420529497,1776258641655,-151.0,0.00012556,3]
[420529498,1776258641678,-14656.67556694,0.00012601,2]
[420529499,1776258641699,-151.0,0.00012601,2]
[420529500,1776258641709,-151.0,0.00012601,2]
[420529501,1776258641730,-151.0,0.00012601,2]
[420529502,1776258641750,-151.0,0.00012601,2]
[420529503,1776258641766,-151.0,0.00012601,2]
[420529504,1776258641783,-1000.0,0.00012615,2]
[420529505,1776258641794,-1001.98527228,0.00012616,2]
[420529506,1776258641806,-1600.0,0.00012638,2]
[420529507,1776258641823,-5380.77185621,0.00012651,2]
[420529508,1776258641837,-200.0,0.00012774,2]
[420529509,1776258641851,-194.72792766,0.00012774,2]
[420529510,1776258641866,-2904.0,0.00012786,2]
[420529511,1776258641880,-173.49,0.00012824,2]
[420529512,1776258641889,-964.2470609,0.00012871,2]
[420529513,1776258641902,-940.0186634,0.00012871,2]
[420529514,1776258641915,-159.0,0.000129,2]
[420529515,1776258641925,-159.0,0.000129,2]
[420529516,1776258641935,-159.0,0.000129,2]
[420529517,1776258641949,-1142.13920846,0.00012973,2]
[420529518,1776258642438,-761.74,0.00013,2]
[420529519,1776258642451,-250.0,0.00013,2]
[420529520,1776258642471,-2904.0,0.00013044,2]
[420529521,1776258642481,-2238.056,0.00013071,2]
[420529522,1776258642490,-1047.0,0.00013071,2]
[420529523,1776258642507,-622.0,0.00013071,2]
[420529524,1776258642518,-1348.0,0.00013071,2]
[420529525,1776258642528,-1265.0,0.00013071,2]
[420529526,1776258642537,-1218.0,0.00013071,2]
[420529527,1776258642555,-926.0,0.00013071,2]
[420529528,1776258642564,-6027.0,0.00013071,2]
[420529529,1776258642574,-2473.0,0.00013071,2]
[420529530,1776258642586,-7305.72067418,0.00013089,2]
[420529531,1776258642601,-1189.42043192,0.00013122,2]
[420529532,1776258642611,-338.457853,0.00013122,2]
[420529533,1776258642622,-376.247192,0.00013122,2]
[420529534,1776258642634,-262.561244,0.00013122,2]
[420529535,1776258642644,-377.921519,0.00013122,2]
[420529536,1776258642655,-204.647622,0.00013122,2]
[420529537,1776258642664,-2000.0,0.0001315,2]
[420529538,1776258642674,-14656.67556694,0.00013151,2]
[420529539,1776258642685,-160.0,0.00013214,2]
[420529540,1776258642696,-151.0,0.00013216,2]
[420529541,1776258642706,-151.0,0.00013216,2]
[420529542,1776258642716,-2865.04,0.000133,2]
[420529543,1776258642729,-201.55934797,0.00013322,2]
[420529544,1776258642742,-201.93286099,0.00013322,2]
[420529545,1776258642751,-243.99301672,0.00013334,2]
[420529546,1776258642760,-150.0,0.0001339,2]
[420529547,1776258642771,-13886.23186213,0.0001339,2]
[420529549,1776258642787,-150.0,0.0001339,2]
[420529551,1776258642797,-75100.35597178,0.0001339,2]
[420529553,1776258642808,-150.0,0.0001339,2]
[420529558,1776258642819,-10241.14054714,0.0001339,2]
[420529561,1776258642829,-151.0,0.0001339,2]
[420529563,1776258642839,-151.0,0.0001339,2]
[420529564,1776258642851,-3240.0,0.00013425,2]
[420529565,1776258642873,-151.0,0.000135,3]
[420529567,1776258642885,-5380.77185621,0.00013501,2]
[420529569,1776258642897,-1000.0,0.00013568,2]
[420529571,1776258642913,-1000.0,0.00013568,2]
[420529572,1776258642924,-10000.0,0.00013598,2]
[420529574,1776258642933,-244.4724,0.000136,2]
[420529576,1776258642951,-7305.72067418,0.00013652,2]
[420529578,1776258642969,-2904.0,0.00013666,2]
[420529581,1776258642983,-500.0,0.00013698,2]
[420529583,1776258642995,-500.0,0.00013698,2]
[420529585,1776258643013,-500.0,0.00013698,2]
[420529587,1776258643024,-500.0,0.00013698,2]
[420529589,1776258643035,-500.0,0.00013698,2]
[420529590,1776258643050,-217.56870953,0.00013698,2]
[420529593,1776258643061,-500.0,0.00013698,2]
[420529596,1776258643072,-500.0,0.00013698,2]
[420529598,1776258643081,-500.0,0.00013698,2]
[420529600,1776258643090,-500.0,0.00013698,2]
[420529602,1776258643102,-500.0,0.00013698,2]
[420529604,1776258643112,-500.0,0.00013698,2]
[420529606,1776258643122,-500.0,0.00013698,2]
[420529608,1776258643131,-500.0,0.00013698,2]
[420529610,1776258643143,-500.0,0.00013698,2]
[420529612,1776258643152,-510.47625396,0.00013698,2]
[420529614,1776258643163,-155.07189,0.00013698,2]
[420529616,1776258643172,-151.0,0.00013698,2]
[420529618,1776258643185,-500.0,0.00013698,2]
[420529619,1776258643195,-500.0,0.00013698,2]
[420529621,1776258643206,-500.0,0.00013698,2]
[420529622,1776258643215,-500.0,0.00013698,2]
[420529623,1776258643230,-500.0,0.00013698,2]
[420529624,1776258643242,-500.0,0.00013698,2]
[420529625,1776258643252,-500.0,0.00013698,2]
[420529626,1776258643261,-500.0,0.00013698,2]
[420529627,1776258643276,-500.0,0.00013698,2]
[420529628,1776258643291,-500.0,0.00013698,2]
[420529629,1776258643301,-151.0,0.00013698,2]
[420529630,1776258643315,-151.0,0.00013698,2]
[420529631,1776258643328,-151.0,0.00013698,2]
[420529632,1776258643338,-500.0,0.00013698,2]
[420529633,1776258643347,-500.0,0.00013698,2]
[420529634,1776258643362,-500.0,0.00013698,2]
[420529635,1776258643377,-500.0,0.00013698,2]
[420529636,1776258643387,-500.0,0.00013698,2]
[420529637,1776258643400,-500.0,0.00013698,2]
[420529638,1776258643415,-500.0,0.00013698,2]
[420529639,1776258643426,-500.0,0.00013698,2]
[420529640,1776258643438,-504.03067521,0.00013698,2]
[420529641,1776258643459,-500.0,0.00013698,2]
[420529642,1776258643474,-500.0,0.00013698,2]
[420529643,1776258643487,-500.0,0.00013698,2]
[420529644,1776258643506,-500.0,0.00013698,2]
[420529645,1776258643523,-500.0,0.00013698,2]
[420529646,1776258643564,-500.0,0.00013698,2]
[420529647,1776258643583,-500.0,0.00013698,2]
[420529648,1776258643609,-617.94,0.00013698,2]
[420529649,1776258643649,-617.94,0.00013698,2]
[420529650,1776258643674,-617.94,0.00013698,2]
[420529651,1776258643692,-617.94,0.00013698,2]
[420529652,1776258643712,-617.94,0.00013698,2]
[420529653,1776258643738,-617.94,0.00013698,2]
[420529654,1776258643762,-617.94,0.00013698,2]
[420529655,1776258643783,-500.0,0.00013698,2]
[420529656,1776258643800,-500.0,0.00013698,2]
[420529657,1776258643819,-500.0,0.00013698,2]
[420529658,1776258643831,-500.0,0.00013698,2]
[420529659,1776258643846,-500.0,0.00013698,2]
[420529660,1776258643864,-500.0,0.00013698,2]
[420529661,1776258643878,-500.0,0.00013698,2]
[420529662,1776258643897,-500.0,0.00013698,2]
[420529663,1776258643908,-500.0,0.00013698,2]
[420529664,1776258643921,-500.0,0.00013698,2]
[420529665,1776258643937,-500.0,0.00013698,2]
[420529666,1776258643949,-500.0,0.00013698,2]
[420529667,1776258643961,-500.0,0.00013698,2]
[420529670,1776258643974,-500.0,0.00013698,2]
[420529672,1776258643990,-500.0,0.00013698,2]
[420529674,1776258644005,-500.0,0.00013698,2]
[420529676,1776258644017,-500.0,0.00013698,2]
[420529678,1776258644036,-178.91537091,0.00013698,2]
[420529681,1776258644050,-500.0,0.00013698,2]
[420529682,1776258644066,-500.0,0.00013698,2]
[420529685,1776258644085,-500.0,0.00013698,2]
[420529686,1776258644100,-500.0,0.00013698,2]
[420529687,1776258644122,-500.0,0.00013698,2]
[420529688,1776258644137,-542.56869768,0.00013698,2]
[420529689,1776258644156,-500.0,0.00013698,2]
[420529690,1776258644174,-500.0,0.00013698,2]
[420529691,1776258644185,-500.0,0.00013698,2]
[420529692,1776258644195,-500.0,0.00013698,2]
[420529693,1776258644213,-500.0,0.00013698,2]
[420529694,1776258644222,-500.0,0.00013698,2]
[420529695,1776258644235,-500.0,0.00013699,2]
[420529696,1776258644251,-500.0,0.00013699,2]
[420529697,1776258644261,-632.55,0.00013699,2]
[420529698,1776258644271,-299.99,0.00013699,2]
[420529699,1776258644283,-1572.71,0.00013699,2]
[420529700,1776258644298,-3134.7,0.00013699,2]
[420529701,1776258644307,-150.99,0.00013699,2]
[420529702,1776258644317,-898.49,0.00013699,2]
[420529703,1776258644329,-166.66,0.00013699,2]
[420529704,1776258644339,-200.0,0.00013699,2]
[420529705,1776258644348,-175.423455,0.00013699,2]
[420529706,1776258644358,-1439.0,0.00013699,2]
[420529707,1776258644367,-500.8615667,0.00013699,2]
[420529708,1776258644377,-500.0,0.00013699,2]
[420529709,1776258644389,-179.57876062,0.00013699,2]
[420529710,1776258644399,-500.0,0.00013699,2]
[420529711,1776258644408,-500.0,0.00013699,2]
[420529712,1776258644418,-152.0,0.00013699,2]
[420529713,1776258644436,-151.0,0.00013699,2]
[420529714,1776258644446,-151.0,0.00013699,2]
[420529715,1776258644455,-151.0,0.00013699,2]
[420529716,1776258644465,-151.0,0.00013699,2]
[420529717,1776258644475,-151.0,0.00013699,2]
[420529718,1776258644484,-14656.67556694,0.000137,2]
[420529719,1776258644494,-1000.0,0.00013763,2]
[420529720,1776258644503,-171.021451,0.00013778,7]
[420529721,1776258644511,-171.782508,0.00013778,7]
[420529722,1776258644521,-166.66,0.00013836,2]
[420529723,1776258644531,-599.60298507,0.00013869,2]
[420529724,1776258644542,-291.38636147,0.0001387,2]
[420529725,1776258644551,-159.0,0.000139,2]
[420529726,1776258644560,-1600.0,0.00013902,2]
[420529727,1776258644570,-191.93433066,0.00013966,2]
[420529728,1776258644579,-166.66,0.00013973,2]
[420529729,1776258644589,-294.217267,0.00014,2]
[420529730,1776258644600,-166.66,0.0001411,2]